[Event "*** Titled Tuesday Blitz"]
[Site "Chess.com"]
[Date "2019.03.05"]
[Round "6"]
[White "belisarius64"]
[Black "ChessWarrior7197"]
[Result "0-1"]
[WhiteElo "2472"]
[BlackElo "2838"]
[TimeControl "180+2"]
[EndTime "14:27:48 PST"]
[Termination "ChessWarrior7197 won on time"]

1. e4 {[%clk 0:03:01.9]} 1... c5 {[%clk 0:02:17.5]} 2. Nf3 {[%clk 0:02:59.5]}
2... d6 {[%clk 0:02:17.3]} 3. d4 {[%clk 0:02:59.6]} 3... cxd4 {[%clk 0:02:18.3]}
4. Nxd4 {[%clk 0:03:01.5]} 4... Nf6 {[%clk 0:02:19.5]} 5. Nc3 {[%clk 0:03:02.7]}
5... a6 {[%clk 0:02:20.8]} 6. h3 {[%clk 0:03:01.3]} 6... e6 {[%clk 0:02:20.1]}
7. g4 {[%clk 0:03:02]} 7... b5 {[%clk 0:02:20.5]} 8. g5 {[%clk 0:02:55.8]} 8...
Nfd7 {[%clk 0:02:20.9]} 9. Bg2 {[%clk 0:02:56.9]} 9... Bb7 {[%clk 0:02:22.1]}
10. Be3 {[%clk 0:02:56]} 10... Nc6 {[%clk 0:02:21]} 11. h4 {[%clk 0:02:57.5]}
11... Rc8 {[%clk 0:02:18.4]} 12. Qe2 {[%clk 0:02:54.8]} 12... Nce5 {[%clk
0:02:15.4]} 13. O-O-O {[%clk 0:02:37.2]} 13... Nc4 {[%clk 0:02:14.3]} 14. Kb1
{[%clk 0:02:36.5]} 14... Nxe3 {[%clk 0:02:11.5]} 15. fxe3 {[%clk 0:02:34.7]}
15... Ne5 {[%clk 0:02:06.8]} 16. Rhf1 {[%clk 0:02:34]} 16... Qa5 {[%clk
0:02:06.9]} 17. Nb3 {[%clk 0:02:20.1]} 17... Qc7 {[%clk 0:02:05.6]} 18. Rd4
{[%clk 0:02:05.4]} 18... Be7 {[%clk 0:02:03.4]} 19. a3 {[%clk 0:02:01.9]} 19...
Nc4 {[%clk 0:01:57.9]} 20. Nd1 {[%clk 0:01:31.4]} 20... O-O {[%clk 0:01:56.7]}
21. Bh3 {[%clk 0:01:22.8]} 21... a5 {[%clk 0:01:56.4]} 22. Qg2 {[%clk
0:01:20.1]} 22... a4 {[%clk 0:01:56.2]} 23. Nc1 {[%clk 0:01:21.2]} 23... d5
{[%clk 0:01:53.1]} 24. g6 {[%clk 0:01:09.3]} 24... hxg6 {[%clk 0:01:50.4]} 25.
h5 {[%clk 0:01:09.6]} 25... gxh5 {[%clk 0:01:46.1]} 26. e5 {[%clk 0:00:54.4]}
26... Nxe5 {[%clk 0:01:41]} 27. Rg1 {[%clk 0:00:45.2]} 27... Ng6 {[%clk
0:01:27.4]} 28. Bxe6 {[%clk 0:00:43.4]} 28... fxe6 {[%clk 0:01:29.3]} 29. Qxg6
{[%clk 0:00:44.3]} 29... Bf6 {[%clk 0:01:30.7]} 30. Rd2 {[%clk 0:00:39.6]} 30...
Qf7 {[%clk 0:01:28.9]} 31. Qg3 {[%clk 0:00:40]} 31... Rc4 {[%clk 0:01:25.1]} 32.
Nd3 {[%clk 0:00:40.5]} 32... h4 {[%clk 0:01:25.1]} 33. Qh3 {[%clk 0:00:36.8]}
33... e5 {[%clk 0:01:25.9]} 34. Rf2 {[%clk 0:00:26.4]} 34... Qh5 {[%clk
0:01:17.9]} 35. Qd7 {[%clk 0:00:17.2]} 35... Qf7 {[%clk 0:01:08.3]} 36. Nxe5
{[%clk 0:00:15.8]} 36... Qxd7 {[%clk 0:00:58.1]} 37. Nxd7 {[%clk 0:00:17.7]}
37... Be7 {[%clk 0:00:51.9]} 38. Nxf8 {[%clk 0:00:15.8]} 38... Bxf8 {[%clk
0:00:53.8]} 39. Nc3 {[%clk 0:00:14.6]} 39... Bxa3 {[%clk 0:00:49.2]} 40. Nxb5
{[%clk 0:00:11.2]} 40... Bf8 {[%clk 0:00:49.3]} 41. Nd4 {[%clk 0:00:12.3]} 41...
Bc8 {[%clk 0:00:46.9]} 42. c3 {[%clk 0:00:12.4]} 42... h3 {[%clk 0:00:47.9]} 43.
Rgf1 {[%clk 0:00:13]} 43... Bd6 {[%clk 0:00:48.4]} 44. Rh1 {[%clk 0:00:12.6]}
44... h2 {[%clk 0:00:49.1]} 45. Rfxh2 {[%clk 0:00:12.2]} 45... Bxh2 {[%clk
0:00:50.1]} 46. Rxh2 {[%clk 0:00:14.1]} 46... Rc7 {[%clk 0:00:43.9]} 47. Kc2
{[%clk 0:00:14.4]} 47... Re7 {[%clk 0:00:44.5]} 48. Kd2 {[%clk 0:00:14.2]} 48...
g5 {[%clk 0:00:45.1]} 49. Rh5 {[%clk 0:00:12.4]} 49... Rg7 {[%clk 0:00:45.8]}
50. Rh2 {[%clk 0:00:11.5]} 50... g4 {[%clk 0:00:46.9]} 51. Rg2 {[%clk
0:00:12.7]} 51... Kh7 {[%clk 0:00:44.9]} 52. Ne2 {[%clk 0:00:12.4]} 52... Kg6
{[%clk 0:00:44.9]} 53. Nf4+ {[%clk 0:00:13.8]} 53... Kf5 {[%clk 0:00:46]} 54.
Nxd5 {[%clk 0:00:06.9]} 54... Ke4 {[%clk 0:00:45.2]} 55. Nf4 {[%clk 0:00:08.2]}
55... Kf3 {[%clk 0:00:45]} 56. Rg1 {[%clk 0:00:08.2]} 56... g3 {[%clk
0:00:45.8]} 57. Rf1+ {[%clk 0:00:09.6]} 57... Ke4 {[%clk 0:00:47.2]} 58. Rg1
{[%clk 0:00:10.9]} 58... Rd7+ {[%clk 0:00:47.7]} 59. Kc2 {[%clk 0:00:10.8]}
59... Kf3 {[%clk 0:00:43.6]} 60. Rf1+ {[%clk 0:00:05.6]} 60... Kxe3 {[%clk
0:00:43.6]} 61. Ng2+ {[%clk 0:00:07]} 61... Ke2 {[%clk 0:00:43.4]} 62. Rf8
{[%clk 0:00:08.9]} 62... Bb7 {[%clk 0:00:41.9]} 63. Nf4+ {[%clk 0:00:09.6]}
63... Ke3 {[%clk 0:00:42.8]} 64. Nh5 {[%clk 0:00:06.6]} 64... Be4+ {[%clk
0:00:43.1]} 65. Kc1 {[%clk 0:00:06.9]} 65... g2 {[%clk 0:00:44.4]} 66. Rg8
{[%clk 0:00:06.7]} 66... Rf7 {[%clk 0:00:44.9]} 0-1

[Event "*** Titled Tuesday Blitz"]
[Site "Chess.com"]
[Date "2019.03.05"]
[Round "6"]
[White "1995Tiger"]
[Black "dopolian"]
[Result "0-1"]
[WhiteElo "1966"]
[BlackElo "2190"]
[TimeControl "180+2"]
[EndTime "14:27:52 PST"]
[Termination "dopolian won on time"]

1. d4 {[%clk 0:03:01.9]} 1... Nf6 {[%clk 0:03:00.4]} 2. c4 {[%clk 0:03:01.8]}
2... c5 {[%clk 0:03:01.4]} 3. d5 {[%clk 0:03:02.5]} 3... e6 {[%clk 0:03:02.8]}
4. Nc3 {[%clk 0:03:01.7]} 4... exd5 {[%clk 0:03:04.7]} 5. cxd5 {[%clk
0:03:03.3]} 5... d6 {[%clk 0:03:06.1]} 6. Nf3 {[%clk 0:03:04.8]} 6... g6 {[%clk
0:03:07.5]} 7. Nd2 {[%clk 0:03:06.3]} 7... b6 {[%clk 0:03:03.4]} 8. e4 {[%clk
0:03:04.3]} 8... Bg7 {[%clk 0:03:04.2]} 9. Bb5+ {[%clk 0:02:42.3]} 9... Nbd7
{[%clk 0:02:45]} 10. Bc6 {[%clk 0:02:08.9]} 10... Rb8 {[%clk 0:02:42.4]} 11. Nb5
{[%clk 0:02:09.7]} 11... Qe7 {[%clk 0:02:28.1]} 12. Nxa7 {[%clk 0:01:41.4]}
12... O-O {[%clk 0:02:19.6]} 13. Nxc8 {[%clk 0:01:21.1]} 13... Rfxc8 {[%clk
0:02:00.9]} 14. O-O {[%clk 0:01:16.6]} 14... b5 {[%clk 0:01:19.4]} 15. a4 {[%clk
0:01:13.9]} 15... bxa4 {[%clk 0:01:14.7]} 16. Qxa4 {[%clk 0:00:55.1]} 16... Ne5
{[%clk 0:00:53.5]} 17. f3 {[%clk 0:00:42.3]} 17... Nxc6 {[%clk 0:00:49.8]} 18.
dxc6 {[%clk 0:00:42.8]} 18... Qc7 {[%clk 0:00:33]} 19. Nc4 {[%clk 0:00:37.2]}
19... d5 {[%clk 0:00:28.4]} 20. exd5 {[%clk 0:00:28.3]} 20... Nxd5 {[%clk
0:00:28.6]} 21. Kh1 {[%clk 0:00:22.2]} 21... Qxc6 {[%clk 0:00:24.3]} 22. Qxc6
{[%clk 0:00:23.1]} 22... Rxc6 {[%clk 0:00:26.2]} 23. Rd1 {[%clk 0:00:20.4]}
23... Bd4 {[%clk 0:00:22.4]} 24. g3 {[%clk 0:00:20]} 24... Re6 {[%clk
0:00:22.1]} 25. Ra7 {[%clk 0:00:17.9]} 25... Rbe8 {[%clk 0:00:19.4]} 26. Bd2
{[%clk 0:00:15.4]} 26... h5 {[%clk 0:00:13.9]} 27. Rd7 {[%clk 0:00:15.9]} 27...
Nf6 {[%clk 0:00:13.5]} 28. Rd6 {[%clk 0:00:15.5]} 28... Rxd6 {[%clk 0:00:14.8]}
29. Nxd6 {[%clk 0:00:16.5]} 29... Re2 {[%clk 0:00:15.7]} 30. Nc4 {[%clk
0:00:16.4]} 30... Nd5 {[%clk 0:00:15.5]} 31. Re1 {[%clk 0:00:16.9]} 31... Rxe1+
{[%clk 0:00:11.2]} 32. Bxe1 {[%clk 0:00:17.7]} 32... Ne3 {[%clk 0:00:11.5]} 33.
Nxe3 {[%clk 0:00:13.4]} 33... Bxe3 {[%clk 0:00:13.4]} 34. b3 {[%clk 0:00:14.5]}
34... Kf8 {[%clk 0:00:12.1]} 35. Kg2 {[%clk 0:00:15.5]} 35... Ke7 {[%clk
0:00:13.4]} 36. f4 {[%clk 0:00:15]} 36... Kd6 {[%clk 0:00:14.6]} 37. Kf3 {[%clk
0:00:16.2]} 37... Bg1 {[%clk 0:00:16.1]} 38. Ke4 {[%clk 0:00:15.6]} 38... f5+
{[%clk 0:00:09]} 39. Kd3 {[%clk 0:00:14.9]} 39... Kd5 {[%clk 0:00:10.2]} 40. h4
{[%clk 0:00:15.1]} 40... Bd4 {[%clk 0:00:10.6]} 41. Kc2 {[%clk 0:00:13.7]} 41...
Ke4 {[%clk 0:00:11.4]} 42. Kd2 {[%clk 0:00:14.4]} 42... Kf3 {[%clk 0:00:11.2]}
43. Kd3 {[%clk 0:00:14.1]} 43... Bg1 {[%clk 0:00:09.8]} 44. Kc4 {[%clk
0:00:14.6]} 44... Ke2 {[%clk 0:00:10.3]} 45. Bc3 {[%clk 0:00:13.9]} 45... Bf2
{[%clk 0:00:11]} 46. Bf6 {[%clk 0:00:07.8]} 46... Bxg3 {[%clk 0:00:07]} 47. Kxc5
{[%clk 0:00:08.6]} 47... Bxf4 {[%clk 0:00:07.8]} 48. b4 {[%clk 0:00:09.8]} 48...
Be3+ {[%clk 0:00:05.9]} 49. Kd5 {[%clk 0:00:10.4]} 49... f4 {[%clk 0:00:06.8]}
50. Be5 {[%clk 0:00:09.5]} 50... f3 {[%clk 0:00:07.8]} 51. Bg3 {[%clk
0:00:10.7]} 51... f2 {[%clk 0:00:09.2]} 52. Bxf2 {[%clk 0:00:11.5]} 52... Kxf2
{[%clk 0:00:11.1]} 53. b5 {[%clk 0:00:11.5]} 53... Kg3 {[%clk 0:00:12.2]} 54.
Ke4 {[%clk 0:00:12]} 54... Bb6 {[%clk 0:00:12.3]} 55. Ke5 {[%clk 0:00:13.3]}
55... Kxh4 {[%clk 0:00:13.3]} 56. Kf4 {[%clk 0:00:14.2]} 56... g5+ {[%clk
0:00:14.2]} 57. Kf3 {[%clk 0:00:16.1]} 57... g4+ {[%clk 0:00:15.7]} 58. Kg2
{[%clk 0:00:17.6]} 58... g3 {[%clk 0:00:17.6]} 59. Kh1 {[%clk 0:00:17.9]} 59...
Kg4 {[%clk 0:00:18.6]} 60. Kg2 {[%clk 0:00:19.1]} 60... h4 {[%clk 0:00:19.4]}
61. Kh1 {[%clk 0:00:20.2]} 61... Bc5 {[%clk 0:00:18.3]} 62. Kg2 {[%clk
0:00:16.5]} 62... h3+ {[%clk 0:00:19.5]} 63. Kf1 {[%clk 0:00:18]} 63... g2+
{[%clk 0:00:20.7]} 0-1

[Event "*** Titled Tuesday Blitz"]
[Site "Chess.com"]
[Date "2019.03.05"]
[Round "6"]
[White "2nd_life"]
[Black "Gentlejimmy7"]
[Result "1/2-1/2"]
[WhiteElo "2408"]
[BlackElo "2402"]
[TimeControl "180+2"]
[EndTime "14:28:03 PST"]
[Termination "Game drawn - insufficient material"]

1. e4 {[%clk 0:02:59.1]} 1... e5 {[%clk 0:03:00.5]} 2. f4 {[%clk 0:02:59.5]}
2... exf4 {[%clk 0:02:58.1]} 3. Nf3 {[%clk 0:03:00.2]} 3... d5 {[%clk
0:02:58.1]} 4. exd5 {[%clk 0:03:00.6]} 4... Bd6 {[%clk 0:02:55.7]} 5. Bb5+
{[%clk 0:02:57]} 5... c6 {[%clk 0:02:55.9]} 6. dxc6 {[%clk 0:02:51.5]} 6... Nxc6
{[%clk 0:02:57.4]} 7. d4 {[%clk 0:02:42.7]} 7... Nf6 {[%clk 0:02:58.4]} 8. Qe2+
{[%clk 0:02:39.2]} 8... Be6 {[%clk 0:02:55.8]} 9. Ng5 {[%clk 0:02:29.8]} 9...
O-O {[%clk 0:02:51.7]} 10. Nxe6 {[%clk 0:02:28.2]} 10... fxe6 {[%clk 0:02:53.2]}
11. Bxc6 {[%clk 0:02:28.5]} 11... bxc6 {[%clk 0:02:51.8]} 12. Qxe6+ {[%clk
0:02:28.5]} 12... Kh8 {[%clk 0:02:52.9]} 13. O-O {[%clk 0:02:29.6]} 13... Qc7
{[%clk 0:02:40]} 14. Nd2 {[%clk 0:02:06.8]} 14... Rae8 {[%clk 0:02:40.4]} 15.
Qc4 {[%clk 0:02:07.5]} 15... Nd5 {[%clk 0:02:10.9]} 16. Nf3 {[%clk 0:02:06.1]}
16... Ne3 {[%clk 0:02:10.5]} 17. Bxe3 {[%clk 0:02:06.4]} 17... fxe3 {[%clk
0:02:12.1]} 18. Rae1 {[%clk 0:02:03.4]} 18... c5 {[%clk 0:02:00.7]} 19. dxc5
{[%clk 0:01:36.1]} 19... Bxc5 {[%clk 0:02:01]} 20. Re2 {[%clk 0:01:35.9]} 20...
Qb6 {[%clk 0:02:00.5]} 21. c3 {[%clk 0:01:33]} 21... a5 {[%clk 0:02:00.7]} 22.
a3 {[%clk 0:01:30.2]} 22... Qd6 {[%clk 0:01:49.3]} 23. b4 {[%clk 0:01:26.1]}
23... axb4 {[%clk 0:01:49.7]} 24. axb4 {[%clk 0:01:18.2]} 24... Bb6 {[%clk
0:01:50.4]} 25. Qb5 {[%clk 0:01:05.3]} 25... Bc7 {[%clk 0:01:42.3]} 26. Qh5
{[%clk 0:00:54.1]} 26... Qd3 {[%clk 0:01:39.7]} 27. Rfe1 {[%clk 0:00:27.2]}
27... Qxc3 {[%clk 0:01:40.3]} 28. Qc5 {[%clk 0:00:22.9]} 28... Qxc5 {[%clk
0:01:33.5]} 29. bxc5 {[%clk 0:00:23.7]} 29... Ba5 {[%clk 0:01:33.7]} 30. Ra1
{[%clk 0:00:22.4]} 30... Bb4 {[%clk 0:01:33.5]} 31. c6 {[%clk 0:00:22.5]} 31...
Rc8 {[%clk 0:01:28.6]} 32. Rc1 {[%clk 0:00:22.7]} 32... Rf6 {[%clk 0:01:28.1]}
33. Rxe3 {[%clk 0:00:21.3]} 33... h6 {[%clk 0:01:22]} 34. Re4 {[%clk 0:00:20.5]}
34... Ba5 {[%clk 0:01:21.7]} 35. Rec4 {[%clk 0:00:20.8]} 35... Bb6+ {[%clk
0:01:19.2]} 36. Kh1 {[%clk 0:00:21.6]} 36... Re6 {[%clk 0:01:18.6]} 37. g3
{[%clk 0:00:14.8]} 37... Kh7 {[%clk 0:01:18.8]} 38. R1c2 {[%clk 0:00:14.8]}
38... g5 {[%clk 0:01:18.4]} 39. Kg2 {[%clk 0:00:15.7]} 39... Kg6 {[%clk
0:01:17.1]} 40. g4 {[%clk 0:00:15.2]} 40... h5 {[%clk 0:01:04.5]} 41. gxh5+
{[%clk 0:00:15.1]} 41... Kxh5 {[%clk 0:01:05.4]} 42. h3 {[%clk 0:00:16.5]} 42...
Rg6 {[%clk 0:00:59.3]} 43. Rg4 {[%clk 0:00:09.1]} 43... Rcxc6 {[%clk 0:00:52]}
44. Rxc6 {[%clk 0:00:07.2]} 44... Rxc6 {[%clk 0:00:52.8]} 45. Rxg5+ {[%clk
0:00:08.2]} 45... Kh6 {[%clk 0:00:53.9]} 46. Rb5 {[%clk 0:00:09.4]} 46... Rg6+
{[%clk 0:00:54.3]} 47. Kf1 {[%clk 0:00:07.7]} 47... Rf6 {[%clk 0:00:53.6]} 48.
Ke2 {[%clk 0:00:07.9]} 48... Re6+ {[%clk 0:00:54.7]} 49. Kf1 {[%clk 0:00:04.2]}
49... Rf6 {[%clk 0:00:55.8]} 50. Rb3 {[%clk 0:00:05.1]} 50... Bc7 {[%clk
0:00:52.1]} 51. Kf2 {[%clk 0:00:05.4]} 51... Bb6+ {[%clk 0:00:52.7]} 52. Kg3
{[%clk 0:00:06.5]} 52... Rg6+ {[%clk 0:00:52]} 53. Kf4 {[%clk 0:00:06.9]} 53...
Bc7+ {[%clk 0:00:49.3]} 54. Kf5 {[%clk 0:00:08]} 54... Rg3 {[%clk 0:00:49.2]}
55. h4 {[%clk 0:00:07.4]} 55... Kh5 {[%clk 0:00:47.5]} 56. Rc3 {[%clk
0:00:07.2]} 56... Bd6 {[%clk 0:00:46.5]} 57. Rd3 {[%clk 0:00:07.5]} 57... Bc7
{[%clk 0:00:46.5]} 58. Ke4 {[%clk 0:00:06.7]} 58... Rg4+ {[%clk 0:00:46.9]} 59.
Kf5 {[%clk 0:00:07.8]} 59... Rg3 {[%clk 0:00:45.3]} 60. Ke4 {[%clk 0:00:06.1]}
60... Rg4+ {[%clk 0:00:46.3]} 61. Ke3 {[%clk 0:00:06.5]} 61... Bb6+ {[%clk
0:00:39.1]} 62. Ke2 {[%clk 0:00:06.8]} 62... Re4+ {[%clk 0:00:35.9]} 63. Kf1
{[%clk 0:00:07.3]} 63... Kg4 {[%clk 0:00:33.3]} 64. Nh2+ {[%clk 0:00:03.9]}
64... Kxh4 {[%clk 0:00:32.5]} 65. Nf3+ {[%clk 0:00:05.3]} 65... Kg4 {[%clk
0:00:33.6]} 66. Ne1 {[%clk 0:00:05.5]} 66... Rf4+ {[%clk 0:00:33.6]} 67. Ke2
{[%clk 0:00:06.4]} 67... Rf2+ {[%clk 0:00:33.3]} 68. Kd1 {[%clk 0:00:07.7]}
68... Kf4 {[%clk 0:00:34]} 69. Rf3+ {[%clk 0:00:07.5]} 69... Rxf3 {[%clk
0:00:32.1]} 70. Nxf3 {[%clk 0:00:09.4]} 70... Kxf3 {[%clk 0:00:33.5]} 1/2-1/2

[Event "*** Titled Tuesday Blitz"]
[Site "Chess.com"]
[Date "2019.03.05"]
[Round "6"]
[White "JosefineHeinemann"]
[Black "Mbneu"]
[Result "1/2-1/2"]
[WhiteElo "2390"]
[BlackElo "2243"]
[TimeControl "180+2"]
[EndTime "14:28:19 PST"]
[Termination "Game drawn by stalemate"]

1. e4 {[%clk 0:03:01.9]} 1... c5 {[%clk 0:02:56.2]} 2. Nf3 {[%clk 0:03:02.8]}
2... Nf6 {[%clk 0:02:56.2]} 3. Nc3 {[%clk 0:03:00.9]} 3... d5 {[%clk 0:02:56.1]}
4. exd5 {[%clk 0:03:02.8]} 4... Nxd5 {[%clk 0:02:56.9]} 5. Bb5+ {[%clk
0:03:03.8]} 5... Bd7 {[%clk 0:02:58.1]} 6. Ne5 {[%clk 0:03:04.5]} 6... Nf6
{[%clk 0:02:58.5]} 7. Nxd7 {[%clk 0:03:03.8]} 7... Nbxd7 {[%clk 0:02:58.2]} 8.
d4 {[%clk 0:03:02.3]} 8... e6 {[%clk 0:02:54.9]} 9. O-O {[%clk 0:03:01.9]} 9...
a6 {[%clk 0:02:55.1]} 10. Be2 {[%clk 0:03:02]} 10... cxd4 {[%clk 0:02:46.5]} 11.
Qxd4 {[%clk 0:03:03.9]} 11... Bc5 {[%clk 0:02:47.2]} 12. Qh4 {[%clk 0:03:04.8]}
12... O-O {[%clk 0:02:46.6]} 13. Rd1 {[%clk 0:02:59.8]} 13... Qc8 {[%clk
0:02:18.3]} 14. Bd3 {[%clk 0:02:54.4]} 14... Ne5 {[%clk 0:02:16.1]} 15. Ne4
{[%clk 0:02:49.6]} 15... Nxe4 {[%clk 0:02:09]} 16. Bxe4 {[%clk 0:02:51.5]} 16...
Ng6 {[%clk 0:02:01.8]} 17. Qh5 {[%clk 0:02:41.1]} 17... Be7 {[%clk 0:01:54.9]}
18. Be3 {[%clk 0:02:37.2]} 18... Rd8 {[%clk 0:01:49.8]} 19. Bd3 {[%clk
0:02:36.4]} 19... Bf6 {[%clk 0:01:44.3]} 20. Rab1 {[%clk 0:02:34.6]} 20... Rd5
{[%clk 0:01:44.2]} 21. Qe2 {[%clk 0:02:34.3]} 21... Rd7 {[%clk 0:01:35.5]} 22.
b3 {[%clk 0:02:32.4]} 22... Qc7 {[%clk 0:01:34.2]} 23. c4 {[%clk 0:02:32.8]}
23... Rad8 {[%clk 0:01:34.1]} 24. Bc2 {[%clk 0:02:32.9]} 24... Bd4 {[%clk
0:01:28.6]} 25. Bg5 {[%clk 0:02:31]} 25... Bf6 {[%clk 0:01:11.8]} 26. Bxf6
{[%clk 0:02:31.8]} 26... gxf6 {[%clk 0:01:13.7]} 27. g3 {[%clk 0:02:32.7]} 27...
Qc5 {[%clk 0:01:10.6]} 28. Be4 {[%clk 0:02:30.4]} 28... b6 {[%clk 0:01:07]} 29.
Rxd7 {[%clk 0:02:28.9]} 29... Rxd7 {[%clk 0:01:07.5]} 30. Rd1 {[%clk 0:02:30.2]}
30... Rxd1+ {[%clk 0:01:07.8]} 31. Qxd1 {[%clk 0:02:32.1]} 31... Kg7 {[%clk
0:01:08.4]} 32. h4 {[%clk 0:02:28.8]} 32... Qe5 {[%clk 0:01:06.3]} 33. Bf3
{[%clk 0:02:27.4]} 33... f5 {[%clk 0:01:06.1]} 34. h5 {[%clk 0:02:22]} 34... Ne7
{[%clk 0:01:06.2]} 35. Qd2 {[%clk 0:02:23.6]} 35... h6 {[%clk 0:01:04.8]} 36.
Kg2 {[%clk 0:02:19.6]} 36... Ng8 {[%clk 0:01:05.2]} 37. Qd8 {[%clk 0:02:15.6]}
37... Qc5 {[%clk 0:00:58.8]} 38. Qd3 {[%clk 0:01:52.6]} 38... Nf6 {[%clk
0:00:57.9]} 39. Qc3 {[%clk 0:01:53.7]} 39... e5 {[%clk 0:00:56.9]} 40. b4 {[%clk
0:01:54]} 40... Qc7 {[%clk 0:00:52.7]} 41. c5 {[%clk 0:01:54.5]} 41... e4 {[%clk
0:00:53.4]} 42. Be2 {[%clk 0:01:55.4]} 42... bxc5 {[%clk 0:00:50]} 43. Qxc5
{[%clk 0:01:53.3]} 43... Qxc5 {[%clk 0:00:49.9]} 44. bxc5 {[%clk 0:01:55.2]}
44... a5 {[%clk 0:00:51.4]} 45. Kf1 {[%clk 0:01:49.2]} 45... Nd5 {[%clk
0:00:50.6]} 46. Ke1 {[%clk 0:01:47.7]} 46... Kf6 {[%clk 0:00:49.9]} 47. Kd2
{[%clk 0:01:48]} 47... Ke5 {[%clk 0:00:50.6]} 48. Bb5 {[%clk 0:01:46.3]} 48...
Nc7 {[%clk 0:00:42.8]} 49. Bc4 {[%clk 0:01:46.1]} 49... f6 {[%clk 0:00:39.3]}
50. Ke3 {[%clk 0:01:47.1]} 50... Ne8 {[%clk 0:00:18.7]} 51. f4+ {[%clk
0:01:15.3]} 51... exf3 {[%clk 0:00:15]} 52. Kxf3 {[%clk 0:01:17.2]} 52... Nc7
{[%clk 0:00:11.5]} 53. Ke3 {[%clk 0:01:16.9]} 53... Ne8 {[%clk 0:00:12.4]} 54.
Bf7 {[%clk 0:01:13]} 54... Nc7 {[%clk 0:00:13.1]} 55. c6 {[%clk 0:01:14.6]}
55... Nb5 {[%clk 0:00:13.1]} 56. Kd3 {[%clk 0:01:05.7]} 56... Nc7 {[%clk
0:00:13.6]} 57. Kc4 {[%clk 0:01:06.6]} 57... Kd6 {[%clk 0:00:14.4]} 58. Bg6
{[%clk 0:01:06.8]} 58... Kxc6 {[%clk 0:00:14.6]} 59. Bxf5 {[%clk 0:01:08.1]}
59... Kd6 {[%clk 0:00:13.7]} 60. a4 {[%clk 0:01:06.5]} 60... Nd5 {[%clk
0:00:13.9]} 61. Kb5 {[%clk 0:01:05.2]} 61... Ke5 {[%clk 0:00:14.7]} 62. Bc8
{[%clk 0:01:02.1]} 62... Ne7 {[%clk 0:00:14.8]} 63. Bb7 {[%clk 0:01:02]} 63...
Nf5 {[%clk 0:00:14.5]} 64. g4 {[%clk 0:01:02.8]} 64... Ne3 {[%clk 0:00:15.1]}
65. Bc8 {[%clk 0:01:02.4]} 65... Kf4 {[%clk 0:00:15.4]} 66. Kxa5 {[%clk
0:01:03.3]} 66... Nxg4 {[%clk 0:00:16.9]} 67. Bxg4 {[%clk 0:00:53.1]} 67... Kxg4
{[%clk 0:00:17.2]} 68. Kb4 {[%clk 0:00:54.1]} 68... f5 {[%clk 0:00:18.6]} 69.
Kc3 {[%clk 0:00:53.8]} 69... Kg3 {[%clk 0:00:17.4]} 70. a5 {[%clk 0:00:54.5]}
70... f4 {[%clk 0:00:18.5]} 71. a6 {[%clk 0:00:37.1]} 71... f3 {[%clk
0:00:19.7]} 72. a7 {[%clk 0:00:38.7]} 72... f2 {[%clk 0:00:21.1]} 73. a8=Q
{[%clk 0:00:40]} 73... f1=Q {[%clk 0:00:22]} 74. Qg8+ {[%clk 0:00:38.4]} 74...
Kh4 {[%clk 0:00:21.2]} 75. Qg6 {[%clk 0:00:37.6]} 75... Qf3+ {[%clk 0:00:19.8]}
76. Kd4 {[%clk 0:00:37.1]} 76... Qxh5 {[%clk 0:00:21.3]} 77. Qxh5+ {[%clk
0:00:37.7]} 77... Kxh5 {[%clk 0:00:21.9]} 78. Ke3 {[%clk 0:00:39.6]} 78... Kg4
{[%clk 0:00:23.3]} 79. Kf2 {[%clk 0:00:41.5]} 79... h5 {[%clk 0:00:23.9]} 80.
Kg1 {[%clk 0:00:43.4]} 80... h4 {[%clk 0:00:25.4]} 81. Kh1 {[%clk 0:00:45.3]}
81... h3 {[%clk 0:00:26.9]} 82. Kg1 {[%clk 0:00:47.2]} 82... Kg3 {[%clk
0:00:28.2]} 83. Kh1 {[%clk 0:00:49.1]} 83... h2 {[%clk 0:00:29.7]} 1/2-1/2